bitfinex/quotes_SOLUSD_20250520
["timestamp","ask_amount","ask_price","bid_price","bid_amount"]
[1747722961361,10.0,168.22,168.21,3.40213735]
[1747722962162,22.46693225,168.22,168.21,3.40213735]
[1747722962671,28.41152861,168.22,168.21,3.40213735]
[1747722963045,28.41152861,168.22,168.19,3.40213735]
[1747722963242,10.0,168.2,168.19,3.40213735]
[1747722964370,15.94530321,168.2,168.19,3.40213735]
[1747722983100,10.0,168.22,168.19,22.33610935]
[1747722983382,10.0,168.22,168.2,18.933972]
[1747722983862,10.0,168.22,168.21,22.33610935]
[1747722984067,10.0,168.23,168.22,0.28432314]
[1747722984264,10.0,168.23,168.22,18.10432314]
[1747722984465,10.0,168.23,168.22,36.753972]
[1747722985679,10.0,168.23,168.22,40.15610935]
[1747722995205,10.0,168.24,168.23,18.64964886]
[1747722996902,10.0,168.24,168.23,0.28432314]
[1747722997200,10.0,168.24,168.23,3.68646049]
[1747722997897,15.94388968,168.24,168.23,3.68646049]
[1747723000399,10.0,168.24,168.23,3.68646049]
[1747723000602,10.0,168.24,168.23,48.33610935]
[1747723003089,15.94388968,168.24,168.23,29.68646049]
[1747723003294,15.94388968,168.24,168.23,29.40213735]
[1747723003744,28.37133603,168.24,168.23,3.40213735]
[1747723003899,40.79878238,168.24,168.23,3.40213735]
[1747723004296,10.0,168.2,168.19,17.82]
[1747723005014,15.94530321,168.2,168.19,17.82]
[1747723005912,15.94530321,168.2,168.19,21.22213735]
[1747723007491,15.94530321,168.2,168.19,21.50646049]
[1747723008412,15.94530321,168.2,168.19,21.22213735]
[1747723010518,10.0,168.2,168.19,40.15610935]
[1747723013120,10.0,168.21,168.2,18.64964886]
[1747723013298,10.0,168.22,168.21,0.28432314]
[1747723013896,15.94394396,168.24,168.21,0.28432314]
[1747723014210,10.0,168.23,168.22,48.05178621]
[1747723014400,10.0,168.24,168.23,18.64964886]
[1747723015702,10.0,168.24,168.23,22.05178621]
[1747723016195,15.94388968,168.24,168.23,22.05178621]
[1747723018200,10.0,168.24,168.23,22.05178621]
[1747723018396,15.94388968,168.24,168.23,22.05178621]
[1747723018709,10.0,168.24,168.23,22.05178621]
[1747723019924,15.94388968,168.24,168.23,22.05178621]
[1747723020808,15.94388968,168.24,168.23,3.40213735]
[1747723021324,28.37133603,168.24,168.23,3.40213735]
[1747723021823,66.79878238,168.24,168.23,3.40213735]
[1747723022827,81.65850658,168.24,168.19,3.40213735]
[1747723023029,12.42744635,168.2,168.19,3.40213735]
[1747723023214,22.42744635,168.2,168.19,3.40213735]
[1747723023700,10.0,168.2,168.19,3.40213735]
[1747723024302,10.0,168.2,168.19,3.68646049]
[1747723024726,10.0,168.2,168.19,22.33610935]
[1747723024924,10.0,168.21,168.2,18.933972]
[1747723025116,10.0,168.22,168.2,18.933972]
[1747723025505,10.0,168.22,168.2,0.28432314]
[1747723026249,10.0,168.21,168.2,0.28432314]
[1747723027515,10.0,168.21,168.2,3.69368242]
[1747723027717,15.94494976,168.21,168.2,3.69368242]
[1747723032023,15.94494976,168.21,168.2,21.51368242]
[1747723032942,10.0,168.22,168.21,18.64964886]
[1747723033931,15.94459636,168.22,168.2,47.51368242]
[1747723034243,15.94459636,168.22,168.2,47.22935928]
[1747723034421,10.0,168.21,168.2,47.22935928]
[1747723034621,10.0,168.21,168.2,44.10432314]
[1747723035023,15.94494976,168.21,168.2,44.10432314]
[1747723036325,15.94494976,168.21,168.2,47.51421021]
[1747723044555,15.94494976,168.21,168.2,3.40988707]
[1747723044745,28.37239611,168.21,168.2,3.40988707]
[1747723045130,15.94494976,168.21,168.2,3.40988707]
[1747723045950,28.37239611,168.21,168.2,3.40988707]
[1747723049051,10.0,168.18,168.17,17.82]
[1747723049346,15.94601022,168.18,168.17,17.82]
[1747723050748,15.94601022,168.18,168.17,21.23076389]
[1747723052752,15.94601022,168.18,168.17,3.41076389]
[1747723055835,10.0,168.18,168.17,22.34473589]
[1747723057065,15.94601022,168.18,168.17,22.34473589]
[1747723065768,10.0,168.18,168.17,3.69508703]
[1747723067473,15.94539683,168.2,168.17,22.34473589]
[1747723067878,10.0,168.21,168.2,26.28432314]
[1747723069269,10.0,168.21,168.2,29.69508703]
[1747723069671,26.0,168.31,168.21,0.28432314]
[1747723069884,5.94177064,168.3,168.25,26.0]
[1747723070049,5.94177064,168.3,168.26,0.28432314]
[1747723070354,21.56070633,168.34,168.27,17.82]
[1747723070355,12.42744635,168.33,168.27,17.82]
[1747723070761,5.94071169,168.33,168.28,3.41076389]
[1747723071076,12.42744635,168.32,168.28,3.41076389]
[1747723071246,12.42744635,168.31,168.28,3.41076389]
[1747723071447,12.42744635,168.3,168.28,3.41076389]
[1747723072169,12.42744635,168.29,168.28,3.41076389]
[1747723072556,12.42744635,168.29,168.25,17.82]
[1747723072755,12.42744635,168.27,168.25,17.82]
[1747723073172,20.79496167,168.31,168.25,17.82]
[1747723073371,12.42744635,168.27,168.25,17.82]
[1747723073952,12.42744635,168.26,168.25,17.82]
[1747723074451,12.42744635,168.27,168.25,17.82]
[1747723075175,5.94318316,168.26,168.25,17.82]
[1747723078982,18.37062951,168.26,168.25,17.82]
[1747723079180,5.94318316,168.26,168.25,17.82]
[1747723082462,18.37062951,168.26,168.25,17.82]
[1747723083370,5.94318316,168.26,168.25,17.82]
[1747723085687,18.37062951,168.26,168.25,17.82]
[1747723086986,33.22858743,168.26,168.21,19.7]
[1747723087284,12.42744635,168.22,168.2,0.024]
[1747723087475,12.42744635,168.24,168.2,0.024]
[1747723087879,12.42744635,168.25,168.2,0.16616157]
[1747723088066,12.42744635,168.25,168.2,0.30832314]
[1747723088269,12.42744635,168.24,168.2,0.30832314]
[1747723088982,5.944243,168.23,168.2,0.28432314]
[1747723089189,5.944243,168.23,168.21,3.40237749]
[1747723090365,5.944243,168.23,168.22,3.40237749]
[1747723090782,5.94388968,168.24,168.22,3.40237749]
[1747723091892,5.94388968,168.24,168.19,17.82]
[1747723093186,18.37133603,168.24,168.19,17.82]
[1747723093377,33.23106023,168.24,168.19,17.82]
[1747723093770,33.23106023,168.24,168.2,3.40300558]
[1747723095888,33.23106023,168.24,168.21,3.40300558]
[1747723097085,20.7999049,168.27,168.21,3.40300558]
[1747723097290,12.42744635,168.26,168.2,3.40300558]
[1747723097469,12.42744635,168.25,168.2,3.40300558]
[1747723098292,5.9435364,168.25,168.2,3.40300558]
[1747723098791,5.9435364,168.25,168.21,3.40300558]
[1747723100388,5.9435364,168.25,168.22,3.40300558]
[1747723101072,5.9435364,168.25,168.22,29.40300558]
[1747723102188,5.9435364,168.25,168.23,3.40300558]
[1747723103192,5.94318316,168.26,168.23,3.40300558]
[1747723104883,12.42744635,168.28,168.23,3.40300558]
[1747723105285,5.94282997,168.27,168.24,3.40300558]
[1747723105786,5.94106463,168.32,168.25,43.82]
[1747723106091,12.42744635,168.31,168.25,43.82]
[1747723106493,18.36851098,168.32,168.26,0.28432314]
[1747723106698,5.94106463,168.32,168.26,0.28432314]
[1747723106995,5.94106463,168.32,168.26,3.68732872]
[1747723107370,5.94071169,168.33,168.26,9.63037155]
[1747723107694,5.94071169,168.33,168.29,26.0]
[1747723107871,5.94000594,168.35,168.3,0.28432314]
[1747723108075,5.94000594,168.35,168.31,17.82]
[1747723108475,5.94000594,168.35,168.32,3.40300558]
[1747723108983,5.93965312,168.36,168.32,3.40300558]
[1747723110088,5.93930035,168.37,168.32,3.40300558]
[1747723110277,5.93930035,168.37,168.33,0.28432314]
[1747723111082,5.93902598,168.38,168.34,26.0]
[1747723111873,5.93902598,168.38,168.35,3.40300558]
[1747723112197,5.93824228,168.4,168.36,0.28432314]
[1747723112398,20.78384798,168.4,168.35,3.40300558]
[1747723112568,33.21129433,168.4,168.35,3.40300558]
[1747723112974,33.21129433,168.4,168.34,26.0]
[1747723113675,27.27305205,168.4,168.34,26.0]
[1747723114898,20.78384798,168.4,168.35,0.28432314]
[1747723116206,14.8456057,168.4,168.35,0.28432314]
[1747723117593,27.27305205,168.4,168.35,0.28432314]
[1747723117794,27.27305205,168.4,168.35,26.28432314]
[1747723118503,14.8456057,168.4,168.35,26.28432314]
[1747723119206,20.78384798,168.4,168.35,26.28432314]
[1747723120907,12.42744635,168.38,168.3,18.64964886]
[1747723121094,12.42744635,168.37,168.32,26.0]
[1747723121300,5.93965312,168.36,168.32,26.0]
[1747723122209,20.78878593,168.36,168.32,26.0]
[1747723122527,12.42744635,168.35,168.32,26.0]
[1747723123615,5.94035879,168.34,168.32,26.0]
[1747723127125,5.94000594,168.35,168.32,26.0]
[1747723128823,5.94000594,168.35,168.33,0.28432314]
[1747723129024,5.93894761,168.38,168.33,0.28432314]
[1747723129203,20.78631665,168.38,168.33,0.28432314]
[1747723129397,12.42744635,168.37,168.32,26.0]
[1747723130018,20.78631665,168.38,168.32,26.0]
[1747723130217,12.42744635,168.37,168.32,26.0]
[1747723130932,12.42744635,168.37,168.31,0.28432314]
[1747723131111,5.93965312,168.36,168.31,0.28432314]
[1747723131610,33.21623228,168.36,168.31,0.28432314]
[1747723133228,14.84913281,168.36,168.31,0.28432314]
[1747723134822,12.42744635,168.34,168.29,1.504]
[1747723135026,12.42744635,168.34,168.3,17.8]
[1747723135530,5.94071169,168.33,168.3,17.8]
[1747723137427,5.94071169,168.33,168.29,27.504]
[1747723137428,12.42744635,168.31,168.29,17.8]
[1747723137615,5.94177064,168.3,168.29,17.8]
[1747723139531,27.27714395,168.36,168.3,0.28432314]
[1747723139906,12.42744635,168.35,168.3,0.28432314]
[1747723140607,12.42744635,168.34,168.3,0.28432314]
[1747723140809,12.42744635,168.34,168.29,17.8]
[1747723141007,12.42744635,168.33,168.29,17.8]
[1747723141440,12.42744635,168.32,168.29,17.8]
[1747723142032,18.36886397,168.31,168.27,17.8]
[1747723142340,18.36886397,168.31,168.26,26.0]
[1747723142341,12.42744635,168.3,168.26,26.0]
[1747723142838,12.42744635,168.29,168.25,19.3819]
[1747723143247,12.42744635,168.3,168.25,19.3819]
[1747723143419,12.42744635,168.3,168.26,3.39283033]
[1747723144147,12.42744635,168.32,168.26,3.39283033]
[1747723145615,5.94141762,168.31,168.27,3.39283033]
[1747723146724,18.36886397,168.31,168.27,3.39283033]
[1747723147033,18.36886397,168.31,168.26,3.39283033]
[1747723147412,14.85205309,168.33,168.26,3.39283033]
[1747723147612,12.42744635,168.32,168.26,3.39283033]
[1747723149535,14.85205309,168.33,168.27,18.933972]
[1747723149536,5.94141762,168.31,168.27,18.933972]
[1747723149719,5.94000594,168.35,168.27,54.26957252]
[1747723150834,14.84978503,168.36,168.27,54.26957252]
[1747723152537,20.78943815,168.36,168.3,0.28432314]
[1747723154216,33.2168845,168.36,168.31,3.39283033]
[1747723155916,33.2168845,168.36,168.31,3.41683033]
[1747723156120,5.93965312,168.36,168.32,3.39283033]
[1747723157117,5.93965312,168.36,168.33,3.39283033]
[1747723158146,5.93930035,168.37,168.33,3.39283033]
[1747723158721,5.93930035,168.37,168.32,3.39283033]
[1747723160119,5.93930035,168.37,168.33,3.39283033]
[1747723160327,12.42744635,168.37,168.33,3.39283033]
[1747723161646,5.93965312,168.36,168.33,3.39283033]
[1747723162238,5.93965312,168.36,168.34,3.39283033]
[1747723163137,5.93965312,168.36,168.32,3.39283033]
[1747723164849,5.93965312,168.36,168.33,3.39283033]
[1747723166343,5.93965312,168.36,168.34,3.39283033]
[1747723167359,14.8471173,168.39,168.34,3.39283033]
[1747723167531,27.27456365,168.39,168.34,3.39283033]
[1747723167848,5.93894761,168.38,168.35,3.39283033]
[1747723169035,5.93859492,168.39,168.36,3.39283033]
[1747723170629,5.93859492,168.39,168.37,3.39283033]
[1747723171246,5.93824228,168.4,168.37,3.39283033]
[1747723171624,5.93824228,168.4,168.37,21.19283033]
[1747723171829,5.93824228,168.4,168.38,3.39283033]
[1747723173453,5.93788967,168.41,168.38,3.39283033]
[1747723174951,20.78261385,168.41,168.38,3.39283033]
[1747723178351,33.2100602,168.41,168.38,3.39283033]
[1747723180450,12.42744635,168.4,168.38,3.39283033]
[1747723180855,12.42744635,168.4,168.37,3.39283033]
[1747723182339,5.93859492,168.39,168.37,3.39283033]
[1747723183657,27.27217053,168.41,168.37,3.39283033]
[1747723183658,5.93824228,168.4,168.37,3.39283033]
[1747723184568,33.21129433,168.4,168.37,3.39283033]
[1747723184863,12.42744635,168.38,168.37,3.39283033]
[1747723185653,18.36639396,168.38,168.37,3.39283033]
[1747723186676,33.213763,168.38,168.33,17.8]
[1747723187563,12.42744635,168.37,168.33,17.8]
[1747723187761,5.93965312,168.36,168.34,0.28432314]
[1747723187969,5.93965312,168.36,168.35,26.0]
[1747723189067,5.93859492,168.39,168.35,26.0]
[1747723189260,5.93859492,168.39,168.35,29.39895058]
[1747723189770,5.93859492,168.39,168.36,26.0]
[1747723191150,20.78325268,168.41,168.37,3.39895058]
[1747723192471,5.93788967,168.41,168.37,3.39895058]
[1747723193765,5.93788967,168.41,168.37,30.96765058]
[1747723194465,5.9375371,168.42,168.37,30.96765058]
[1747723194677,5.9375371,168.42,168.38,17.8]
[1747723194875,5.9375371,168.42,168.38,21.19895058]
[1747723195261,33.20882622,168.42,168.38,21.19895058]
[1747723195959,33.20882622,168.42,168.39,3.39895058]
[1747723197076,20.78137987,168.42,168.39,3.39895058]
[1747723198894,33.20882622,168.42,168.39,3.39895058]
[1747723199774,12.42744635,168.41,168.39,3.39895058]
[1747723200450,12.42744635,168.4,168.39,3.39895058]
[1747723201053,24.8548927,168.4,168.39,3.39895058]
[1747723201990,20.78508224,168.39,168.33,3.39895058]
[1747723202289,12.42744635,168.36,168.33,3.39895058]
[1747723202961,12.42744635,168.36,168.34,3.39895058]
[1747723204163,5.94000594,168.35,168.32,3.39895058]
[1747723205683,18.36745229,168.35,168.32,3.39895058]
[1747723206405,18.36745229,168.35,168.33,3.39895058]
[1747723207683,18.36745229,168.35,168.32,3.39895058]
[1747723207887,12.42744635,168.33,168.32,3.39895058]
[1747723209170,12.42744635,168.33,168.3,3.39895058]
[1747723209575,12.42744635,168.34,168.3,3.39895058]
[1747723209890,5.94071169,168.33,168.3,3.39895058]
[1747723210070,5.94071169,168.33,168.31,3.39895058]
[1747723211191,5.94071169,168.33,168.3,3.39895058]
[1747723212900,5.94071169,168.33,168.31,3.39895058]
[1747723214501,5.94071169,168.33,168.3,3.39895058]
[1747723216704,20.79249093,168.33,168.3,3.39895058]
[1747723221790,12.42744635,168.32,168.3,3.39895058]
[1747723221989,12.42744635,168.31,168.3,3.39895058]
[1747723222380,26.0,168.28,168.27,3.39895058]
[1747723222601,38.42744635,168.28,168.27,3.39895058]
[1747723223978,44.36992317,168.28,168.27,3.39895058]
[1747723224177,59.22611523,168.28,168.24,3.39895058]
[1747723224491,12.42744635,168.26,168.24,3.39895058]
[1747723224879,12.42744635,168.25,168.24,3.39895058]
[1747723225975,5.9435364,168.25,168.24,3.39895058]
[1747723226290,5.9435364,168.25,168.22,3.39895058]
[1747723227388,18.37098275,168.25,168.22,3.39895058]
[1747723227606,12.42744635,168.23,168.22,3.39895058]
[1747723227907,18.37168935,168.23,168.22,3.39895058]
[1747723228803,33.23229685,168.23,168.17,19.3939]
[1747723228984,12.42744635,168.21,168.17,19.3939]
[1747723229597,5.944243,168.23,168.17,19.3939]
[1747723229802,12.42744635,168.22,168.17,19.3939]
[1747723230305,5.94494976,168.21,168.17,19.3939]
[1747723231192,5.94494976,168.21,168.18,0.28432314]
[1747723231504,12.42744635,168.24,168.18,0.28432314]
[1747723231708,5.944243,168.23,168.18,18.933972]
[1747723235306,12.42744635,168.22,168.17,19.3939]
[1747723235505,27.28805385,168.23,168.17,19.3939]
[1747723236593,12.42744635,168.22,168.18,17.82]
[1747723238609,5.94494976,168.21,168.18,17.82]
[1747723240201,5.94388968,168.24,168.19,0.28432314]
[1747723241508,18.37133603,168.24,168.19,0.28432314]
[1747723243299,5.94388968,168.24,168.19,0.28432314]
[1747723244003,18.37133603,168.24,168.19,0.28432314]
[1747723245823,12.42744635,168.24,168.19,0.28432314]
[1747723246120,12.42744635,168.25,168.19,18.933972]
[1747723246302,33.22924274,168.26,168.19,18.933972]
[1747723246834,12.42744635,168.25,168.19,18.933972]
[1747723247122,12.42744635,168.25,168.2,3.38810298]
[1747723247816,18.37133603,168.24,168.2,3.38810298]
[1747723249109,18.37133603,168.24,168.2,17.82]
[1747723250799,5.94388968,168.24,168.2,17.82]
[1747723254421,5.94388968,168.24,168.21,0.28432314]
[1747723255412,5.9435364,168.25,168.21,0.28432314]
[1747723256629,18.37098275,168.25,168.21,0.28432314]
[1747723256929,18.37098275,168.25,168.2,17.82]
[1747723257114,12.42744635,168.24,168.2,17.82]
[1747723257304,5.944243,168.23,168.21,3.39515952]
[1747723259019,5.944243,168.23,168.22,3.39515952]
[1747723260520,5.94388968,168.24,168.21,3.39515952]
[1747723262543,20.80237741,168.25,168.21,3.39515952]
[1747723264539,20.79743299,168.29,168.21,3.39515952]
[1747723264740,12.42744635,168.26,168.21,3.39515952]
[1747723265239,12.42744635,168.25,168.22,3.39515952]
[1747723265621,12.42744635,168.23,168.22,3.39515952]
[1747723266139,138.2,168.28,168.22,3.39515952]
[1747723266320,12.42744635,168.23,168.22,3.39515952]
[1747723266834,18.37168935,168.23,168.22,3.39515952]
[1747723267027,33.23229685,168.23,168.19,3.39515952]
[1747723267212,12.42744635,168.21,168.19,3.39515952]
[1747723267616,12.42744635,168.22,168.19,3.39515952]
[1747723268745,5.94494976,168.21,168.2,3.39515952]
[1747723270736,18.37239611,168.21,168.2,3.39515952]
[1747723271930,18.37239611,168.21,168.19,3.39515952]
[1747723272247,12.42744635,168.2,168.19,3.39515952]
[1747723273447,20.80732417,168.21,168.15,26.0]
[1747723273643,20.80732417,168.21,168.15,27.5839]
[1747723273828,20.80732417,168.21,168.16,17.82]
[1747723274834,5.944243,168.23,168.19,26.0]
[1747723275455,5.944243,168.23,168.2,26.0]
[1747723275830,5.9435364,168.25,168.21,26.0]
[1747723276756,5.9435364,168.25,168.22,3.39515952]
[1747723276964,12.42744635,168.24,168.22,3.39515952]
[1747723277755,5.9435364,168.25,168.22,3.39515952]
[1747723279071,12.42744635,168.26,168.22,3.39515952]
[1747723279672,14.85770583,168.27,168.22,3.39515952]
[1747723279850,27.28515218,168.27,168.22,3.39515952]
[1747723280042,12.42744635,168.26,168.22,3.39515952]
[1747723280468,12.42744635,168.25,168.22,3.39515952]
[1747723280975,12.42744635,168.23,168.22,3.39515952]
[1747723281272,18.37168935,168.23,168.22,3.39515952]
[1747723281964,37.02133821,168.23,168.22,3.39515952]
[1747723282139,18.64964886,168.22,168.15,8.52027893]
[1747723282339,12.42744635,168.16,168.15,8.52027893]
[1747723282559,12.42744635,168.18,168.15,8.52027893]
[1747723283140,5.94636379,168.17,168.15,8.52027893]
[1747723284462,55.721215,168.23,168.15,26.0]
[1747723284463,29.721215,168.23,168.15,26.0]
[1747723284675,27.28921183,168.22,168.16,26.0]
[1747723285050,12.42744635,168.21,168.16,26.0]
[1747723285554,5.94530321,168.2,168.16,26.0]
[1747723287073,18.37274956,168.2,168.16,26.0]
[1747723288071,5.94530321,168.2,168.16,26.0]
[1747723288647,5.94530321,168.2,168.17,26.0]
[1747723292662,5.94530321,168.2,168.17,43.82]
[1747723293168,14.86176548,168.22,168.18,1.5416]
[1747723293169,5.94491074,168.22,168.18,1.5416]
[1747723293365,14.85935692,168.25,168.19,0.28432314]
[1747723293366,5.94388968,168.24,168.19,0.28432314]
[1747723293547,5.94388968,168.24,168.21,26.0]
[1747723294576,5.94388968,168.24,168.22,3.40401033]
[1747723296558,5.9435364,168.25,168.21,26.0]
[1747723299073,5.9435364,168.25,168.22,3.40394775]
[1747723299978,20.79934673,168.28,168.22,3.40394775]
[1747723300171,12.42744635,168.26,168.22,3.40394775]
[1747723300369,12.42744635,168.26,168.23,3.40394775]
[1747723301676,12.42744635,168.27,168.22,29.40394775]
[1747723301983,5.94318316,168.26,168.23,17.82]
[1747723306883,5.94282997,168.27,168.23,17.82]
[1747723308764,5.94282997,168.27,168.24,3.40434995]
[1747723310173,5.94282997,168.27,168.23,17.82]
[1747723311986,20.7999049,168.27,168.23,17.82]
[1747723313489,20.7999049,168.27,168.24,3.40256078]
[1747723314078,33.22735125,168.27,168.24,3.40256078]
[1747723314469,12.42744635,168.26,168.24,3.40256078]
[1747723314671,12.42744635,168.25,168.24,3.40256078]
[1747723315772,38.42744635,168.25,168.24,3.40256078]
[1747723315978,44.37098275,168.25,168.24,3.40256078]
[1747723316382,88.94750578,168.25,168.19,17.82]
[1747723316695,12.42744635,168.22,168.19,17.82]
[1747723317473,5.94494976,168.21,168.19,17.82]
[1747723317774,5.94388968,168.24,168.2,21.22337837]
[1747723319089,5.94388968,168.24,168.21,0.28432314]
[1747723320094,5.94282997,168.27,168.22,3.40337837]
[1747723321208,20.7999049,168.27,168.22,3.40337837]
[1747723322598,33.22735125,168.27,168.22,3.40337837]
[1747723323313,33.22735125,168.27,168.23,17.82]
[1747723324922,20.7999049,168.27,168.23,17.82]
[1747723325391,20.7999049,168.27,168.2,1.1131]
[1747723325591,20.7999049,168.27,168.24,3.40376739]
[1747723326386,5.94282997,168.27,168.24,3.40376739]
[1747723326602,5.94282997,168.27,168.24,21.22376739]
[1747723327409,5.94282997,168.27,168.25,0.28432314]
[1747723327592,5.94282997,168.27,168.24,1.5526]
[1747723327800,5.94282997,168.27,168.25,17.82]
[1747723328202,5.94282997,168.27,168.24,1.5526]
[1747723328396,20.7999049,168.27,168.24,1.5526]
[1747723330202,20.7999049,168.27,168.25,3.40631126]
[1747723331714,20.7999049,168.27,168.24,1.5526]
[1747723333115,20.7999049,168.27,168.23,17.82]
[1747723333413,20.7999049,168.27,168.22,0.28432314]
[1747723333414,12.42744635,168.26,168.22,17.82]
[1747723333611,20.80237741,168.25,168.22,17.82]
[1747723334224,20.80237741,168.25,168.23,3.40861955]
[1747723335418,20.80237741,168.25,168.22,17.82]
[1747723335632,12.42744635,168.24,168.2,1.6515]
[1747723335824,12.42744635,168.24,168.2,19.4715]
[1747723336030,12.42744635,168.23,168.2,19.4715]
[1747723336398,12.42744635,168.22,168.16,7.5257]
[1747723336731,12.42744635,168.21,168.17,17.82]
[1747723337100,12.42744635,168.21,168.18,3.41181829]
[1747723337420,12.42744635,168.2,168.18,3.41181829]
[1747723337723,5.94565669,168.19,168.18,3.41181829]
[1747723338225,5.94494976,168.21,168.18,3.41181829]
[1747723338408,5.94494976,168.21,168.19,0.28432314]
[1747723338918,5.94494976,168.21,168.2,3.41181829]
[1747723339825,12.42744635,168.22,168.2,3.41181829]
[1747723340124,20.80361388,168.24,168.18,17.82]
[1747723340125,12.42744635,168.21,168.18,17.82]
[1747723342129,5.94530321,168.2,168.19,3.41153216]
[1747723347217,20.80856123,168.2,168.16,19.3319]
[1747723347728,5.94530321,168.2,168.17,0.28432314]
[1747723348809,20.80557289,168.23,168.17,0.28432314]
[1747723349129,12.42744635,168.22,168.18,21.22682598]
[1747723349840,12.42744635,168.21,168.18,21.22682598]
[1747723350743,5.94530321,168.2,168.19,3.40682598]
[1747723351111,18.37274956,168.2,168.19,3.40682598]
[1747723352422,33.23600758,168.2,168.16,1.5119]
[1747723352730,12.42744635,168.19,168.16,1.5119]
[1747723353235,5.94601022,168.18,168.16,1.5119]
[1747723354544,5.94565669,168.19,168.16,1.5119]
[1747723355212,33.23724478,168.19,168.12,27.1624]
[1747723355411,12.42744635,168.18,168.13,21.22446851]
[1747723355611,12.42744635,168.17,168.13,21.22446851]
[1747723355811,12.42744635,168.17,168.13,3.40446851]
[1747723356014,12.42744635,168.17,168.13,21.22446851]
[1747723356419,5.94671741,168.16,168.13,3.40446851]
[1747723356730,18.37416376,168.16,168.13,21.22446851]
[1747723357215,20.81351093,168.16,168.13,21.22446851]
[1747723357416,20.81351093,168.16,168.14,3.40446851]
[1747723358837,33.24095728,168.16,168.14,3.40446851]
[1747723359051,33.24095728,168.16,168.13,26.0]
[1747723359238,20.81351093,168.16,168.13,26.0]
[1747723359538,33.24095728,168.16,168.13,26.0]
[1747723360838,12.42744635,168.17,168.13,26.0]
[1747723362036,5.94671741,168.16,168.12,19.4554]
[1747723362541,5.94671741,168.16,168.13,3.400479]
[1747723363716,5.94671741,168.16,168.12,19.4554]
[1747723364335,20.81156504,168.18,168.12,19.4554]
[1747723364722,33.23901139,168.18,168.12,19.4554]
[1747723368531,5.94601022,168.18,168.13,0.28432314]
[1747723369644,5.94601022,168.18,168.13,18.933972]
[1747723369948,31.94530321,168.2,168.14,6.2498]
[1747723370835,59.23600758,168.2,168.15,0.28432314]
[1747723371039,12.42744635,168.19,168.13,0.28432314]
[1747723371937,12.42744635,168.19,168.13,0.14216157]
[1747723372135,59.23600758,168.2,168.13,0.28432314]
[1747723372330,46.80856123,168.2,168.13,18.933972]
[1747723373147,31.94530321,168.2,168.13,24.8817165]
[1747723374250,31.94530321,168.2,168.13,18.933972]
[1747723374926,31.94530321,168.2,168.13,24.88170065]
[1747723375847,31.94530321,168.2,168.13,18.933972]
[1747723377252,31.94530321,168.2,168.13,38.413972]
[1747723377752,46.80856123,168.2,168.13,38.413972]
[1747723377967,59.23600758,168.2,168.13,38.413972]
[1747723378854,20.80856123,168.2,168.13,38.413972]
[1747723381049,5.94530321,168.2,168.14,29.40949058]
[1747723381253,5.94530321,168.2,168.15,18.933972]
[1747723381470,14.86117351,168.23,168.18,26.0]
[1747723381471,5.94459636,168.22,168.18,26.0]
[1747723383569,14.86117351,168.23,168.19,21.22949058]
[1747723383750,12.42744635,168.21,168.19,21.22949058]
[1747723383955,18.37239611,168.21,168.2,3.40949058]
[1747723384271,5.94494976,168.21,168.2,3.40949058]
[1747723387051,5.9435364,168.25,168.2,3.69381372]
[1747723388579,5.9435364,168.25,168.21,3.40949058]
[1747723389274,20.80168061,168.26,168.21,3.40949058]
[1747723390673,14.85849745,168.26,168.21,3.40949058]
[1747723390852,14.85849745,168.26,168.22,3.40949058]
[1747723391873,20.80168061,168.26,168.22,3.40949058]
[1747723392373,20.80168061,168.26,168.2,0.28432314]
[1747723393345,33.22912696,168.26,168.2,0.28432314]
[1747723393773,33.22912696,168.26,168.21,3.40370927]
[1747723393958,5.94318316,168.26,168.21,3.40370927]
[1747723394282,5.94247682,168.28,168.22,27.81532314]
[1747723394860,20.79866888,168.28,168.22,27.81532314]
[1747723395390,20.79866888,168.28,168.23,3.40370927]
[1747723396179,50.49904941,168.32,168.23,3.40370927]
[1747723396389,12.42744635,168.29,168.23,3.40370927]
[1747723397186,20.79372622,168.32,168.25,0.28432314]
[1747723397353,33.22117257,168.32,168.26,17.82]
[1747723397755,20.79372622,168.32,168.27,0.28432314]
[1747723398585,5.94106463,168.32,168.29,26.0]
[1747723398884,5.94035879,168.34,168.29,26.0]
[1747723399482,5.94035879,168.34,168.29,0.28432314]
[1747723399957,33.21870213,168.34,168.29,0.28432314]
[1747723402066,20.79125578,168.34,168.29,0.28432314]
[1747723403578,33.21870213,168.34,168.3,17.82]
[1747723405281,20.79125578,168.34,168.3,17.82]
[1747723405492,33.21870213,168.34,168.3,17.82]